[Event "*** Titled Tuesday 3|2 Blitz"]
[Site "Chess.com"]
[Date "2016.03.01"]
[Round "4"]
[White "jcgs1030"]
[Black "MMSANCHEZ"]
[Result "1-0"]
[WhiteElo "2210"]
[BlackElo "2262"]
[TimeControl "180+2"]
[EndTime "17:47:13 PST"]
[Termination "jcgs1030 won by resignation"]

1. e4 {[%clk 0:03:01.9]} 1... e6 {[%clk 0:02:54.8]} 2. c4 {[%clk 0:02:59.8]}
2... c5 {[%clk 0:02:41.4]} 3. Nf3 {[%clk 0:02:58.8]} 3... Nc6 {[%clk 0:02:42.4]}
4. Nc3 {[%clk 0:02:59.5]} 4... a6 {[%clk 0:02:41.7]} 5. d4 {[%clk 0:03:00.5]}
5... cxd4 {[%clk 0:02:42.2]} 6. Nxd4 {[%clk 0:03:02.4]} 6... Qc7 {[%clk
0:02:42.6]} 7. Be2 {[%clk 0:03:02.8]} 7... Nf6 {[%clk 0:02:43]} 8. O-O {[%clk
0:03:03.7]} 8... Bc5 {[%clk 0:02:41.7]} 9. Nxc6 {[%clk 0:03:04.2]} 9... bxc6
{[%clk 0:02:41]} 10. Kh1 {[%clk 0:02:51.1]} 10... O-O {[%clk 0:02:41.3]} 11. Bg5
{[%clk 0:02:50.1]} 11... Be7 {[%clk 0:02:34.4]} 12. f4 {[%clk 0:02:51]} 12... d6
{[%clk 0:02:29.6]} 13. Qe1 {[%clk 0:02:33.8]} 13... d5 {[%clk 0:02:03.1]} 14. e5
{[%clk 0:02:18.8]} 14... Ne4 {[%clk 0:02:01.9]} 15. Nxe4 {[%clk 0:02:18.4]}
15... dxe4 {[%clk 0:02:01.6]} 16. Bxe7 {[%clk 0:01:34.8]} 16... Qxe7 {[%clk
0:02:00.9]} 17. Bd1 {[%clk 0:01:27]} 17... f5 {[%clk 0:01:49.6]} 18. exf6 {[%clk
0:01:26.2]} 18... Qxf6 {[%clk 0:01:50.5]} 19. Qxe4 {[%clk 0:01:23.5]} 19... Qxb2
{[%clk 0:01:45.7]} 20. Bc2 {[%clk 0:01:24.2]} 20... g6 {[%clk 0:01:46.6]} 21.
Bb3 {[%clk 0:00:57.4]} 21... Qa3 {[%clk 0:01:33.4]} 22. Qxc6 {[%clk 0:00:54.5]}
22... Ra7 {[%clk 0:01:33.9]} 23. c5 {[%clk 0:00:55.1]} 23... Re7 {[%clk
0:01:24.2]} 24. Rae1 {[%clk 0:00:54.5]} 24... Rfe8 {[%clk 0:00:58.5]} 25. f5
{[%clk 0:00:51.9]} 25... Bb7 {[%clk 0:00:57.5]} 26. Rxe6 {[%clk 0:00:26]} 26...
Bxc6 {[%clk 0:00:37.6]} 27. Rxe7+ {[%clk 0:00:26.8]} 27... Kf8 {[%clk
0:00:35.5]} 28. Rf7+ {[%clk 0:00:24.9]} 28... Kg8 {[%clk 0:00:36.7]} 29. fxg6
{[%clk 0:00:25.3]} 29... hxg6 {[%clk 0:00:18.3]} 30. h4 {[%clk 0:00:10.3]} 30...
Kh8 {[%clk 0:00:18.7]} 31. h5 {[%clk 0:00:09.7]} 31... Qxc5 {[%clk 0:00:19.8]}
32. hxg6 {[%clk 0:00:07.1]} 32... Qh5+ {[%clk 0:00:21]} 33. Kg1 {[%clk 0:00:09]}
33... Qxg6 {[%clk 0:00:22.3]} 34. R7f2 {[%clk 0:00:09.4]} 34... Rb8 {[%clk
0:00:22.4]} 35. Re1 {[%clk 0:00:09]} 35... a5 {[%clk 0:00:23.7]} 36. Re3 {[%clk
0:00:09.4]} 36... a4 {[%clk 0:00:25]} 37. Bc2 {[%clk 0:00:09.1]} 37... Qg5
{[%clk 0:00:21.6]} 38. Rh3+ {[%clk 0:00:09.9]} 38... Kg7 {[%clk 0:00:21.4]} 39.
Kh2 {[%clk 0:00:11.5]} 39... Qe5+ {[%clk 0:00:21.4]} 40. Rg3+ {[%clk 0:00:12.4]}
40... Kh6 {[%clk 0:00:22.2]} 41. Rf5 {[%clk 0:00:12.7]} 41... Qxg3+ {[%clk
0:00:11.8]} 42. Kxg3 {[%clk 0:00:13.4]} 42... Rg8+ {[%clk 0:00:13.7]} 43. Kf4
{[%clk 0:00:14.1]} 43... Rxg2 {[%clk 0:00:14.8]} 44. Rf6+ {[%clk 0:00:15.5]}
44... Kg7 {[%clk 0:00:14.5]} 45. Rxc6 {[%clk 0:00:16.4]} 45... a3 {[%clk
0:00:16.4]} 46. Ke3 {[%clk 0:00:17.2]} 46... Kf7 {[%clk 0:00:17.3]} 47. Bb3+
{[%clk 0:00:18.1]} 47... Ke7 {[%clk 0:00:18.7]} 48. Ra6 {[%clk 0:00:19.4]} 48...
Kd7 {[%clk 0:00:20.1]} 49. Rxa3 {[%clk 0:00:19.9]} 49... Kc6 {[%clk 0:00:22]}
50. Kd3 {[%clk 0:00:21.2]} 50... Kc5 {[%clk 0:00:23.1]} 51. Ra5+ {[%clk
0:00:20.5]} 51... Kb4 {[%clk 0:00:23.3]} 52. Rf5 {[%clk 0:00:18]} 52... Rg3+
{[%clk 0:00:23.6]} 53. Ke4 {[%clk 0:00:18.6]} 53... Rg4+ {[%clk 0:00:23.4]} 54.
Rf4 {[%clk 0:00:19.7]} 54... Rg1 {[%clk 0:00:21.4]} 55. Kd5+ {[%clk 0:00:20.6]}
55... Kb5 {[%clk 0:00:22.7]} 56. Rd4 {[%clk 0:00:18.7]} 56... Rg5+ {[%clk
0:00:22.7]} 57. Ke4 {[%clk 0:00:20.1]} 57... Rg7 {[%clk 0:00:23.5]} 58. Kd3
{[%clk 0:00:21.3]} 58... Kc5 {[%clk 0:00:24.4]} 59. Kc3 {[%clk 0:00:21.7]} 59...
Rg3+ {[%clk 0:00:25]} 60. Rd3 {[%clk 0:00:23.2]} 60... Rg4 {[%clk 0:00:26.4]}
61. a4 {[%clk 0:00:23.7]} 61... Kb6 {[%clk 0:00:26.6]} 62. Rd4 {[%clk
0:00:24.4]} 62... Rg5 {[%clk 0:00:23.6]} 63. Kb4 {[%clk 0:00:25]} 63... Kc6
{[%clk 0:00:25.2]} 64. Bc4 {[%clk 0:00:22.6]} 64... Kb6 {[%clk 0:00:26.3]} 65.
Bb5 {[%clk 0:00:20.8]} 65... Rg6 {[%clk 0:00:26.7]} 66. a5+ {[%clk 0:00:21.7]}
66... Kc7 {[%clk 0:00:28]} 67. Kc5 {[%clk 0:00:22.9]} 67... Rg5+ {[%clk
0:00:28.6]} 68. Rd5 {[%clk 0:00:24.4]} 68... Rg7 {[%clk 0:00:29.8]} 69. a6
{[%clk 0:00:24.9]} 69... Kb8 {[%clk 0:00:30.7]} 70. Kb6 {[%clk 0:00:25.2]} 70...
Rb7+ {[%clk 0:00:29.2]} 71. Ka5 {[%clk 0:00:25.1]} 71... Rc7 {[%clk 0:00:28.8]}
72. Rd8+ {[%clk 0:00:24]} 72... Ka7 {[%clk 0:00:29.5]} 73. Rd7 {[%clk
0:00:24.6]} 73... Kb8 {[%clk 0:00:21.7]} 74. Rxc7 {[%clk 0:00:20.9]} 74... Kxc7
{[%clk 0:00:23]} 75. Bf1 {[%clk 0:00:22]} 75... Kb8 {[%clk 0:00:22]} 76. Kb6
{[%clk 0:00:22.4]} 1-0

[Event "*** Titled Tuesday 3|2 Blitz"]
[Site "Chess.com"]
[Date "2016.03.01"]
[Round "4"]
[White "TheLancer"]
[Black "Miguelito"]
[Result "1/2-1/2"]
[WhiteElo "2406"]
[BlackElo "2302"]
[TimeControl "180+2"]
[EndTime "17:47:39 PST"]
[Termination "Game drawn by repetition"]

1. e4 {[%clk 0:03:01.5]} 1... c5 {[%clk 0:03:01]} 2. Nf3 {[%clk 0:02:59.3]} 2...
e6 {[%clk 0:03:02.3]} 3. d4 {[%clk 0:03:00.9]} 3... cxd4 {[%clk 0:03:04.2]} 4.
Nxd4 {[%clk 0:03:02.6]} 4... Nc6 {[%clk 0:03:05.8]} 5. Nb5 {[%clk 0:03:03]} 5...
d6 {[%clk 0:03:06.1]} 6. Bf4 {[%clk 0:03:04.6]} 6... e5 {[%clk 0:03:07]} 7. Be3
{[%clk 0:03:06.3]} 7... a6 {[%clk 0:03:08.2]} 8. N5c3 {[%clk 0:03:06.5]} 8...
Nf6 {[%clk 0:03:07.5]} 9. Bg5 {[%clk 0:03:05.8]} 9... Be7 {[%clk 0:03:07.9]} 10.
Nd2 {[%clk 0:03:05.5]} 10... O-O {[%clk 0:03:08.6]} 11. Bxf6 {[%clk 0:03:04.2]}
11... Bxf6 {[%clk 0:03:08.8]} 12. Nc4 {[%clk 0:03:05.2]} 12... Nd4 {[%clk
0:02:59]} 13. Nd5 {[%clk 0:02:58.8]} 13... Be6 {[%clk 0:02:53.6]} 14. Nce3
{[%clk 0:02:43.8]} 14... Bg5 {[%clk 0:02:50]} 15. c3 {[%clk 0:02:42.3]} 15...
Nc6 {[%clk 0:02:47.7]} 16. h4 {[%clk 0:02:21.7]} 16... Bxe3 {[%clk 0:02:31.2]}
17. Nxe3 {[%clk 0:02:21.8]} 17... Ne7 {[%clk 0:02:31.7]} 18. c4 {[%clk
0:01:24.7]} 18... b5 {[%clk 0:02:22.7]} 19. b3 {[%clk 0:01:09.3]} 19... bxc4
{[%clk 0:02:15.6]} 20. Bxc4 {[%clk 0:01:04.2]} 20... Bxc4 {[%clk 0:02:15.4]} 21.
Nxc4 {[%clk 0:01:05.1]} 21... d5 {[%clk 0:02:12.2]} 22. exd5 {[%clk 0:01:06.4]}
22... Nxd5 {[%clk 0:02:08.4]} 23. O-O {[%clk 0:01:04.6]} 23... f6 {[%clk
0:02:04.6]} 24. Qf3 {[%clk 0:00:59.4]} 24... Nf4 {[%clk 0:01:59.8]} 25. Rfd1
{[%clk 0:00:58.6]} 25... Qe7 {[%clk 0:02:00.2]} 26. g3 {[%clk 0:00:59.2]} 26...
Ne6 {[%clk 0:02:01.1]} 27. Rd6 {[%clk 0:00:55.5]} 27... Nd4 {[%clk 0:02:00.1]}
28. Qd5+ {[%clk 0:00:56.6]} 28... Kh8 {[%clk 0:02:01.3]} 29. Re1 {[%clk
0:00:57.1]} 29... Qf7 {[%clk 0:01:50.7]} 30. Qxf7 {[%clk 0:00:52.8]} 30... Rxf7
{[%clk 0:01:51.7]} 31. Kg2 {[%clk 0:00:53.7]} 31... h5 {[%clk 0:01:48.6]} 32. f4
{[%clk 0:00:51.4]} 32... Nb5 {[%clk 0:01:49.5]} 33. fxe5 {[%clk 0:00:44.8]}
33... Nxd6 {[%clk 0:01:46.5]} 34. exd6 {[%clk 0:00:46.7]} 34... Rd8 {[%clk
0:01:44.9]} 35. Rd1 {[%clk 0:00:45.3]} 35... Kh7 {[%clk 0:01:42.3]} 36. Rd5
{[%clk 0:00:46.9]} 36... Kh6 {[%clk 0:01:42.9]} 37. Ra5 {[%clk 0:00:44]} 37...
Ra7 {[%clk 0:01:41.4]} 38. Kf3 {[%clk 0:00:45.4]} 38... g5 {[%clk 0:01:42.1]}
39. Ke4 {[%clk 0:00:42]} 39... Kg6 {[%clk 0:01:41.6]} 40. Kd5 {[%clk 0:00:36.4]}
40... Kf5 {[%clk 0:01:37.6]} 41. Ne3+ {[%clk 0:00:29.5]} 41... Kg6 {[%clk
0:01:38.2]} 42. b4 {[%clk 0:00:23]} 42... Rb7 {[%clk 0:01:35.8]} 43. a3 {[%clk
0:00:21.5]} 43... Rb6 {[%clk 0:01:32.6]} 44. Nc4 {[%clk 0:00:21]} 44... Rb5+
{[%clk 0:01:34.1]} 45. Rxb5 {[%clk 0:00:21.7]} 45... axb5 {[%clk 0:01:36]} 46.
Ne3 {[%clk 0:00:23.2]} 46... f5 {[%clk 0:01:35.7]} 47. hxg5 {[%clk 0:00:20.1]}
47... Kxg5 {[%clk 0:01:36.9]} 48. Ng2 {[%clk 0:00:21.4]} 48... Kg4 {[%clk
0:01:37.5]} 49. Nf4 {[%clk 0:00:22.8]} 49... Kxg3 {[%clk 0:01:38]} 50. Nxh5+
{[%clk 0:00:24.3]} 50... Kh4 {[%clk 0:01:37.4]} 51. Ng7 {[%clk 0:00:23.3]} 51...
f4 {[%clk 0:01:37.6]} 52. Ne6 {[%clk 0:00:24.9]} 52... f3 {[%clk 0:01:37.9]} 53.
Nxd8 {[%clk 0:00:21.2]} 53... f2 {[%clk 0:01:39.2]} 54. Nc6 {[%clk 0:00:19.6]}
54... f1=Q {[%clk 0:01:39.5]} 55. d7 {[%clk 0:00:20.5]} 55... Qf7+ {[%clk
0:01:18.7]} 56. Kd6 {[%clk 0:00:20.9]} 56... Qf6+ {[%clk 0:01:19.6]} 57. Kc7
{[%clk 0:00:21.7]} 57... Qf7 {[%clk 0:01:20.8]} 58. Kc8 {[%clk 0:00:19.5]} 58...
Qe6 {[%clk 0:01:21]} 59. Nd4 {[%clk 0:00:16]} 59... Qg4 {[%clk 0:01:18.5]} 60.
Nf3+ {[%clk 0:00:14.4]} 60... Kg3 {[%clk 0:01:16.7]} 61. Ne5 {[%clk 0:00:15.2]}
61... Qe6 {[%clk 0:01:17.7]} 62. Nf7 {[%clk 0:00:10.7]} 62... Qc6+ {[%clk
0:01:05]} 63. Kd8 {[%clk 0:00:09.2]} 63... Qf6+ {[%clk 0:01:06.2]} 64. Ke8
{[%clk 0:00:09.7]} 64... Qe6+ {[%clk 0:01:07.4]} 65. Kd8 {[%clk 0:00:06.2]}
65... Qxf7 {[%clk 0:01:08.7]} 66. Kc7 {[%clk 0:00:07.9]} 66... Kf4 {[%clk
0:01:08.4]} 67. Kc8 {[%clk 0:00:08.9]} 67... Qe6 {[%clk 0:01:09.4]} 68. Kc7
{[%clk 0:00:09.8]} 68... Qc4+ {[%clk 0:01:08.7]} 69. Kb7 {[%clk 0:00:09.4]}
69... Qd5+ {[%clk 0:01:06.2]} 70. Kc7 {[%clk 0:00:09.9]} 70... Qe5+ {[%clk
0:01:07.7]} 71. Kc6 {[%clk 0:00:06.2]} 71... Qh8 {[%clk 0:01:02.7]} 72. Kc7
{[%clk 0:00:07.3]} 72... Qc3+ {[%clk 0:01:03.7]} 73. Kb7 {[%clk 0:00:08.2]}
73... Qd3 {[%clk 0:00:53.5]} 74. Kc7 {[%clk 0:00:09]} 74... Qc4+ {[%clk
0:00:37.9]} 75. Kb7 {[%clk 0:00:10]} 75... Qd5+ {[%clk 0:00:38]} 76. Kc7 {[%clk
0:00:11.3]} 76... Qf7 {[%clk 0:00:38.6]} 77. Kc8 {[%clk 0:00:09.3]} 77... Qf5
{[%clk 0:00:39.2]} 78. Kc7 {[%clk 0:00:10.2]} 78... Qc2+ {[%clk 0:00:40.3]} 79.
Kb7 {[%clk 0:00:11.2]} 79... Qd3 {[%clk 0:00:41.1]} 80. Kc7 {[%clk 0:00:12.4]}
80... Qc4+ {[%clk 0:00:39]} 81. Kb7 {[%clk 0:00:13.4]} 81... Qd5+ {[%clk
0:00:40.3]} 82. Kc7 {[%clk 0:00:14.7]} 82... Qc4+ {[%clk 0:00:33.6]} 83. Kb7
{[%clk 0:00:15.6]} 1/2-1/2

[Event "*** Titled Tuesday 3|2 Blitz"]
[Site "Chess.com"]
[Date "2016.03.01"]
[Round "4"]
[White "Aygehovit1992"]
[Black "IMRosen"]
[Result "1-0"]
[WhiteElo "2412"]
[BlackElo "2262"]
[TimeControl "180+2"]
[EndTime "17:49:08 PST"]
[Termination "Aygehovit1992 won by checkmate"]

1. e4 {[%clk 0:02:59.6]} 1... d5 {[%clk 0:02:58.5]} 2. exd5 {[%clk 0:03:00.6]}
2... Nf6 {[%clk 0:03:00.2]} 3. d4 {[%clk 0:03:01.4]} 3... Bg4 {[%clk 0:03:01.7]}
4. f3 {[%clk 0:03:00]} 4... Bf5 {[%clk 0:03:01.1]} 5. Bb5+ {[%clk 0:02:58]} 5...
c6 {[%clk 0:02:55.9]} 6. dxc6 {[%clk 0:02:58.5]} 6... bxc6 {[%clk 0:02:56.2]} 7.
Bc4 {[%clk 0:02:55.1]} 7... e6 {[%clk 0:02:50.3]} 8. Ne2 {[%clk 0:02:56.1]} 8...
Bd6 {[%clk 0:02:39.5]} 9. c3 {[%clk 0:02:56.3]} 9... Qc7 {[%clk 0:02:39.6]} 10.
g3 {[%clk 0:02:54.7]} 10... h5 {[%clk 0:02:38.2]} 11. Bg5 {[%clk 0:02:53.4]}
11... Nbd7 {[%clk 0:02:38.5]} 12. Nd2 {[%clk 0:02:52.5]} 12... Rb8 {[%clk
0:02:39.3]} 13. Bb3 {[%clk 0:02:44.2]} 13... Nd5 {[%clk 0:02:39.9]} 14. Nc4
{[%clk 0:02:43.3]} 14... Bf8 {[%clk 0:02:26.9]} 15. Qd2 {[%clk 0:02:31.1]} 15...
a5 {[%clk 0:02:20]} 16. Kf2 {[%clk 0:02:21.4]} 16... c5 {[%clk 0:02:12.8]} 17.
Ne3 {[%clk 0:02:18.5]} 17... Nxe3 {[%clk 0:02:11.1]} 18. Bxe3 {[%clk 0:02:19.6]}
18... c4 {[%clk 0:02:03.3]} 19. Ba4 {[%clk 0:02:20.5]} 19... Bd6 {[%clk
0:02:03.9]} 20. b3 {[%clk 0:02:01.3]} 20... Bd3 {[%clk 0:01:58.7]} 21. Nf4
{[%clk 0:01:59.2]} 21... Bf5 {[%clk 0:01:51.9]} 22. h4 {[%clk 0:01:28.2]} 22...
Ke7 {[%clk 0:01:52.5]} 23. Rhg1 {[%clk 0:01:28.2]} 23... Nf6 {[%clk 0:01:49.8]}
24. bxc4 {[%clk 0:01:24.8]} 24... Qxc4 {[%clk 0:01:47.7]} 25. Bb3 {[%clk
0:01:26.3]} 25... Qa6 {[%clk 0:01:41.9]} 26. Bd1 {[%clk 0:00:54.8]} 26... a4
{[%clk 0:01:32.8]} 27. Be2 {[%clk 0:00:56]} 27... Qa5 {[%clk 0:01:33]} 28. c4
{[%clk 0:00:41.8]} 28... Qxd2 {[%clk 0:01:32.9]} 29. Bxd2 {[%clk 0:00:42.9]}
29... Rb2 {[%clk 0:01:33.9]} 30. Rgd1 {[%clk 0:00:34.6]} 30... Bc2 {[%clk
0:01:14.7]} 31. Rdc1 {[%clk 0:00:35.2]} 31... Bxf4 {[%clk 0:01:07.2]} 32. gxf4
{[%clk 0:00:34.7]} 32... Bf5 {[%clk 0:00:59.5]} 33. Bc3 {[%clk 0:00:34.9]} 33...
Rbb8 {[%clk 0:00:54.6]} 34. a3 {[%clk 0:00:35.8]} 34... Rhc8 {[%clk 0:00:55.1]}
35. Bb4+ {[%clk 0:00:36.8]} 35... Ke8 {[%clk 0:00:55.8]} 36. Bd1 {[%clk
0:00:37.3]} 36... Ra8 {[%clk 0:00:51.8]} 37. Ra2 {[%clk 0:00:36.7]} 37... Bd3
{[%clk 0:00:49.4]} 38. Be2 {[%clk 0:00:35.6]} 38... Bxe2 {[%clk 0:00:28.7]} 39.
Kxe2 {[%clk 0:00:36.2]} 39... Nd5 {[%clk 0:00:29.3]} 40. Bd2 {[%clk 0:00:32.6]}
40... Nb6 {[%clk 0:00:26.4]} 41. Kd3 {[%clk 0:00:33.7]} 41... Rc6 {[%clk
0:00:24.5]} 42. Rb2 {[%clk 0:00:20.2]} 42... Rd8 {[%clk 0:00:25.6]} 43. Rb4
{[%clk 0:00:17.2]} 43... Nd7 {[%clk 0:00:24.4]} 44. Be3 {[%clk 0:00:16.8]} 44...
Nc5+ {[%clk 0:00:23.9]} 45. Ke2 {[%clk 0:00:16.5]} 45... Nb3 {[%clk 0:00:24.7]}
46. Rd1 {[%clk 0:00:18]} 46... Rdc8 {[%clk 0:00:25.7]} 47. Rxa4 {[%clk
0:00:14.4]} 47... Rxc4 {[%clk 0:00:26.3]} 48. Rxc4 {[%clk 0:00:16]} 48... Rxc4
{[%clk 0:00:28.2]} 49. Kd3 {[%clk 0:00:15.2]} 49... Ra4 {[%clk 0:00:28.1]} 50.
Kc3 {[%clk 0:00:15.6]} 50... Na5 {[%clk 0:00:23]} 51. Ra1 {[%clk 0:00:14]} 51...
Rc4+ {[%clk 0:00:23.3]} 52. Kd3 {[%clk 0:00:13.9]} 52... Ra4 {[%clk 0:00:19.8]}
53. Ra2 {[%clk 0:00:14.2]} 53... Nb3 {[%clk 0:00:20.1]} 54. Kc3 {[%clk
0:00:14.1]} 54... Na5 {[%clk 0:00:20.4]} 55. Kd3 {[%clk 0:00:13.1]} 55... Kd7
{[%clk 0:00:21.8]} 56. Bd2 {[%clk 0:00:12.6]} 56... Nc6 {[%clk 0:00:21.1]} 57.
Bc3 {[%clk 0:00:13]} 57... Kd6 {[%clk 0:00:22.8]} 58. Ke4 {[%clk 0:00:06]} 58...
g6 {[%clk 0:00:20.9]} 59. Ra1 {[%clk 0:00:04.2]} 59... Ne7 {[%clk 0:00:13.6]}
60. Kd3 {[%clk 0:00:04.5]} 60... Nf5 {[%clk 0:00:14.1]} 61. Kc2 {[%clk
0:00:04.5]} 61... Nxd4+ {[%clk 0:00:13.6]} 62. Kb2 {[%clk 0:00:05.7]} 62... Nxf3
{[%clk 0:00:11.6]} 63. Kb3 {[%clk 0:00:06.2]} 63... Ra8 {[%clk 0:00:11.3]} 64.
a4 {[%clk 0:00:07.7]} 64... Nxh4 {[%clk 0:00:12.6]} 65. a5 {[%clk 0:00:08.5]}
65... Nf5 {[%clk 0:00:14.2]} 66. Ka4 {[%clk 0:00:09.1]} 66... Kc6 {[%clk
0:00:15.3]} 67. Bb4 {[%clk 0:00:10.2]} 67... Ne3 {[%clk 0:00:11.4]} 68. Rc1+
{[%clk 0:00:10.2]} 68... Kd7 {[%clk 0:00:12.8]} 69. Bc5 {[%clk 0:00:08.9]} 69...
Nd5 {[%clk 0:00:14.3]} 70. Kb5 {[%clk 0:00:09]} 70... Rb8+ {[%clk 0:00:11.6]}
71. Bb6 {[%clk 0:00:10.2]} 71... Ke7 {[%clk 0:00:07.4]} 72. Ka6 {[%clk
0:00:07.8]} 72... Kf6 {[%clk 0:00:05]} 73. Ka7 {[%clk 0:00:08.6]} 73... Rh8
{[%clk 0:00:05.8]} 74. a6 {[%clk 0:00:09.1]} 74... Nxb6 {[%clk 0:00:05]} 75.
Kxb6 {[%clk 0:00:10.1]} 75... Ra8 {[%clk 0:00:04.6]} 76. Kb7 {[%clk 0:00:11]}
76... Rxa6 {[%clk 0:00:04.2]} 77. Kxa6 {[%clk 0:00:12.2]} 77... Kf5 {[%clk
0:00:05.6]} 78. Kb5 {[%clk 0:00:13.6]} 78... h4 {[%clk 0:00:04.7]} 79. Kc4
{[%clk 0:00:14.4]} 79... Ke4 {[%clk 0:00:05.4]} 80. Rh1 {[%clk 0:00:14.3]} 80...
Kxf4 {[%clk 0:00:04]} 81. Rxh4+ {[%clk 0:00:15.2]} 81... Kg3 {[%clk 0:00:04.3]}
82. Rh7 {[%clk 0:00:14.9]} 82... f5 {[%clk 0:00:05.3]} 83. Rh6 {[%clk
0:00:16.2]} 83... g5 {[%clk 0:00:06.1]} 84. Rxe6 {[%clk 0:00:17.4]} 84... g4
{[%clk 0:00:06.7]} 85. Kd3 {[%clk 0:00:19]} 85... Kf3 {[%clk 0:00:07.3]} 86. Rf6
{[%clk 0:00:14.8]} 86... f4 {[%clk 0:00:08.3]} 87. Kd2 {[%clk 0:00:12.1]} 87...
g3 {[%clk 0:00:08.8]} 88. Ke1 {[%clk 0:00:12.7]} 88... Kg2 {[%clk 0:00:06.9]}
89. Rxf4 {[%clk 0:00:13.4]} 89... Kh1 {[%clk 0:00:07.6]} 90. Rg4 {[%clk
0:00:13.6]} 90... Kh2 {[%clk 0:00:06.9]} 91. Ke2 {[%clk 0:00:14.1]} 91... g2
{[%clk 0:00:07.3]} 92. Kf2 {[%clk 0:00:15]} 92... Kh1 {[%clk 0:00:08.7]} 93.
Rh4# {[%clk 0:00:16.3]} 1-0

[Event "*** Titled Tuesday 3|2 Blitz"]
[Site "Chess.com"]
[Date "2016.03.01"]
[Round "5"]
[White "thegreendog"]
[Black "LADIESGET2KNOWME"]
[Result "0-1"]
[WhiteElo "2230"]
[BlackElo "2363"]
[TimeControl "180+2"]
[EndTime "17:52:30 PST"]
[Termination "LADIESGET2KNOWME won by resignation"]

1. d4 {[%clk 0:03:01.9]} 1... Nf6 {[%clk 0:03:00.8]} 2. Bg5 {[%clk 0:03:03]}
2... Ne4 {[%clk 0:03:01.5]} 3. Bf4 {[%clk 0:03:03.5]} 3... c5 {[%clk 0:03:03.1]}
4. c3 {[%clk 0:03:03.7]} 4... Qb6 {[%clk 0:02:53.1]} 5. Qb3 {[%clk 0:03:04.1]}
5... cxd4 {[%clk 0:02:51.6]} 6. Qxb6 {[%clk 0:03:04.5]} 6... axb6 {[%clk
0:02:53.5]} 7. cxd4 {[%clk 0:03:05.1]} 7... Nc6 {[%clk 0:02:55]} 8. Be3 {[%clk
0:02:28.4]} 8... Nb4 {[%clk 0:02:50.8]} 9. Kd1 {[%clk 0:02:29.5]} 9... Nxa2
{[%clk 0:02:29.6]} 10. f3 {[%clk 0:02:29.9]} 10... Nac3+ {[%clk 0:02:24.2]} 11.
Kc2 {[%clk 0:02:27.3]} 11... Rxa1 {[%clk 0:02:18.1]} 12. bxc3 {[%clk 0:02:23]}
12... Nxc3 {[%clk 0:02:07.4]} 13. Nd2 {[%clk 0:02:23.9]} 13... Nd1 {[%clk
0:01:46]} 0-1

[Event "*** Titled Tuesday 3|2 Blitz"]
[Site "Chess.com"]
[Date "2016.03.01"]
[Round "5"]
[White "jk13"]
[Black "kikydu96"]
[Result "1-0"]
[WhiteElo "2449"]
[BlackElo "2274"]
[TimeControl "180+2"]
[EndTime "17:53:01 PST"]
[Termination "jk13 won by checkmate"]

1. e4 {[%clk 0:03:01.9]} 1... e5 {[%clk 0:03:00.6]} 2. Nf3 {[%clk 0:03:02.4]}
2... Nc6 {[%clk 0:03:02.2]} 3. Bc4 {[%clk 0:03:04]} 3... Nf6 {[%clk 0:03:02.3]}
4. d3 {[%clk 0:03:04.7]} 4... Bc5 {[%clk 0:03:02.8]} 5. c3 {[%clk 0:03:05.5]}
5... d6 {[%clk 0:03:03.9]} 6. O-O {[%clk 0:03:06.9]} 6... a6 {[%clk 0:03:05.1]}
7. Bb3 {[%clk 0:03:08.5]} 7... Ba7 {[%clk 0:03:06.2]} 8. Nbd2 {[%clk 0:03:09.2]}
8... O-O {[%clk 0:03:06.4]} 9. h3 {[%clk 0:03:09.5]} 9... Ne7 {[%clk 0:03:07.4]}
10. Re1 {[%clk 0:03:10.4]} 10... Ng6 {[%clk 0:03:08.5]} 11. Nf1 {[%clk
0:03:12.3]} 11... Be6 {[%clk 0:03:09.5]} 12. Bc2 {[%clk 0:03:12.7]} 12... h6
{[%clk 0:03:10.2]} 13. Ng3 {[%clk 0:03:13.7]} 13... d5 {[%clk 0:03:11.4]} 14.
exd5 {[%clk 0:03:12.5]} 14... Nxd5 {[%clk 0:03:01.3]} 15. d4 {[%clk 0:03:08.1]}
15... exd4 {[%clk 0:02:48.5]} 16. Bxg6 {[%clk 0:03:08.9]} 16... dxc3 {[%clk
0:02:42.1]} 17. Bc2 {[%clk 0:03:04.7]} 17... Qd6 {[%clk 0:02:31.7]} 18. Qd3
{[%clk 0:02:57]} 18... g6 {[%clk 0:02:27.6]} 19. Ne4 {[%clk 0:02:58]} 19... Qb6
{[%clk 0:02:24.9]} 20. Bxh6 {[%clk 0:02:38.5]} 20... Rfd8 {[%clk 0:02:21.5]} 21.
Qe2 {[%clk 0:02:30.3]} 21... cxb2 {[%clk 0:02:17.6]} 22. Rab1 {[%clk 0:02:31.8]}
22... Bf5 {[%clk 0:02:16]} 23. Bb3 {[%clk 0:02:20.1]} 23... c6 {[%clk
0:02:05.6]} 24. Qxb2 {[%clk 0:02:18.6]} 24... Re8 {[%clk 0:02:01.8]} 25. Qg7#
{[%clk 0:02:18.2]} 1-0

[Event "*** Titled Tuesday 3|2 Blitz"]
[Site "Chess.com"]
[Date "2016.03.01"]
[Round "5"]
[White "FairChess_on_YouTube"]
[Black "MITerryble"]
[Result "1-0"]
[WhiteElo "2763"]
[BlackElo "2651"]
[TimeControl "180+2"]
[EndTime "17:53:52 PST"]
[Termination "FairChess_on_YouTube won by resignation"]

1. d4 {[%clk 0:03:01.9]} 1... e6 {[%clk 0:03:00.7]} 2. Nf3 {[%clk 0:03:03.1]}
2... Nf6 {[%clk 0:03:01.3]} 3. c4 {[%clk 0:03:04.3]} 3... Bb4+ {[%clk
0:03:01.9]} 4. Nbd2 {[%clk 0:03:04.8]} 4... O-O {[%clk 0:03:01.9]} 5. a3 {[%clk
0:03:05.6]} 5... Be7 {[%clk 0:03:02.6]} 6. e4 {[%clk 0:03:06.7]} 6... d6 {[%clk
0:03:03.5]} 7. Bd3 {[%clk 0:03:06.9]} 7... c5 {[%clk 0:03:04.6]} 8. d5 {[%clk
0:03:01.5]} 8... e5 {[%clk 0:03:03.4]} 9. b4 {[%clk 0:03:00.9]} 9... Na6 {[%clk
0:03:02.7]} 10. Rb1 {[%clk 0:02:59.1]} 10... g6 {[%clk 0:03:01.2]} 11. O-O
{[%clk 0:02:57.8]} 11... Nh5 {[%clk 0:03:02.1]} 12. Nb3 {[%clk 0:02:55.8]} 12...
b6 {[%clk 0:02:58.5]} 13. Re1 {[%clk 0:02:52.6]} 13... Bd7 {[%clk 0:02:56.8]}
14. Bh6 {[%clk 0:02:52.5]} 14... Re8 {[%clk 0:02:57.4]} 15. Qc2 {[%clk
0:02:46.3]} 15... Bf6 {[%clk 0:02:53.5]} 16. g3 {[%clk 0:02:41.9]} 16... Bg7
{[%clk 0:02:52.7]} 17. Bg5 {[%clk 0:02:41.7]} 17... Bf6 {[%clk 0:02:50.7]} 18.
Be3 {[%clk 0:02:39.9]} 18... Be7 {[%clk 0:02:47.8]} 19. b5 {[%clk 0:02:33]}
19... Nc7 {[%clk 0:02:48.3]} 20. a4 {[%clk 0:02:34.7]} 20... a5 {[%clk
0:02:49.3]} 21. Nbd2 {[%clk 0:02:02.1]} 21... Bf6 {[%clk 0:02:40.3]} 22. Kf1
{[%clk 0:01:51.5]} 22... Bg4 {[%clk 0:02:35.6]} 23. Ke2 {[%clk 0:01:45]} 23...
Bg5 {[%clk 0:02:35.1]} 24. Kd1 {[%clk 0:01:42.2]} 24... Bxe3 {[%clk 0:02:33.5]}
25. Rxe3 {[%clk 0:01:44.1]} 25... Rf8 {[%clk 0:02:15.9]} 26. Kc1 {[%clk
0:01:38.3]} 26... Bxf3 {[%clk 0:02:15.4]} 27. Rxf3 {[%clk 0:01:35.9]} 27... Ne8
{[%clk 0:02:14.6]} 28. Kb2 {[%clk 0:01:35.9]} 28... Ra7 {[%clk 0:02:11.8]} 1-0